bitfinex/quotes_BTCUSD_20240918
["timestamp","ask_amount","ask_price","bid_price","bid_amount"]
[1726674522860,0.00158,59524.0,59523.0,0.840829]
[1726674523574,0.01921205,59524.0,59523.0,0.840829]
[1726674523802,0.01921205,59524.0,59523.0,0.168821]
[1726674524028,0.01921205,59524.0,59523.0,0.504825]
[1726674524280,0.02944416,59524.0,59523.0,0.840829]
[1726674524514,0.01921205,59524.0,59523.0,0.168821]
[1726674524742,0.01921205,59524.0,59523.0,0.504825]
[1726674525196,0.01921205,59524.0,59523.0,0.840829]
[1726674525657,0.00158,59524.0,59523.0,0.840829]
[1726674525891,0.0192391,59524.0,59523.0,0.840829]
[1726674526348,0.0192391,59524.0,59523.0,1.177833]
[1726674526860,0.00158,59524.0,59523.0,1.177833]
[1726674527087,0.01921611,59524.0,59523.0,1.176833]
[1726674528181,0.01921611,59524.0,59523.0,1.36288667]
[1726674528408,0.01921611,59524.0,59523.0,1.176833]
[1726674528868,0.01921611,59524.0,59523.0,1.181833]
[1726674529119,0.01921912,59524.0,59523.0,1.181833]
[1726674529633,0.01921912,59524.0,59523.0,1.176833]
[1726674530129,0.01921912,59524.0,59523.0,1.517837]
[1726674530416,0.01921912,59524.0,59523.0,1.181833]
[1726674530649,0.01921912,59524.0,59523.0,1.189833]
[1726674530874,0.00158,59524.0,59523.0,1.289833]
[1726674531110,0.00158,59524.0,59523.0,1.84189067]
[1726674531336,0.00158,59524.0,59523.0,1.55599527]
[1726674531561,0.00158,59524.0,59523.0,1.50588667]
[1726674532047,0.00158,59524.0,59523.0,1.51593944]
[1726674532254,0.00158,59524.0,59523.0,1.289833]
[1726674533624,0.00158,59524.0,59523.0,1.52599527]
[1726674533853,0.00158,59524.0,59523.0,1.55104957]
[1726674534088,0.00158,59524.0,59523.0,1.81189067]
[1726674534326,0.00158,59524.0,59523.0,1.60115818]
[1726674534587,0.00158,59524.0,59523.0,1.57631465]
[1726674534810,0.00148,59524.0,59523.0,1.60631465]
[1726674535037,0.00148,59524.0,59523.0,1.50588667]
[1726674535513,0.00148,59524.0,59523.0,1.49288667]
[1726674536209,0.00148,59524.0,59523.0,1.50088667]
[1726674536446,0.00148,59524.0,59523.0,1.49288667]
[1726674536671,0.00148,59524.0,59523.0,1.50288667]
[1726674537132,0.00148,59524.0,59523.0,1.47288667]
[1726674537803,0.00148,59524.0,59523.0,1.50288667]
[1726674539961,0.00138,59524.0,59523.0,1.83889067]
[1726674540203,0.001542,59529.0,59528.0,1.228916]
[1726674540429,0.001542,59529.0,59528.0,1.9842435]
[1726674540661,0.001542,59529.0,59528.0,1.6482675]
[1726674540935,0.001542,59529.0,59528.0,0.93994]
[1726674541411,0.001542,59529.0,59525.0,0.15071569]
[1726674541664,0.02008373,59529.0,59528.0,0.503964]
[1726674541930,0.02008373,59529.0,59528.0,0.60469552]
[1726674541931,0.01888544,59529.0,59528.0,0.60469552]
[1726674542415,0.01888544,59529.0,59528.0,0.60969552]
[1726674542653,0.01888544,59529.0,59528.0,0.60469552]
[1726674542895,0.001542,59529.0,59528.0,0.94067152]
[1726674543123,0.001542,59529.0,59528.0,1.180916]
[1726674543361,0.001542,59529.0,59528.0,1.40182767]
[1726674543843,0.001542,59529.0,59528.0,1.58788134]
[1726674544068,0.001542,59529.0,59528.0,1.79794567]
[1726674544299,0.001542,59529.0,59528.0,1.82794567]
[1726674545447,0.001542,59529.0,59528.0,1.82894567]
[1726674545676,0.001542,59529.0,59528.0,1.82794567]
[1726674545926,0.001542,59529.0,59528.0,1.83994567]
[1726674546173,0.00094541,59529.0,59528.0,1.83994567]
[1726674546647,0.00094541,59529.0,59528.0,1.82794567]
[1726674547139,0.00094541,59529.0,59528.0,1.83994567]
[1726674547365,0.00094541,59529.0,59528.0,1.90194567]
[1726674547366,0.00084541,59529.0,59528.0,1.90194567]
[1726674547604,0.00084541,59529.0,59528.0,1.9099733]
[1726674548367,0.00084541,59529.0,59528.0,1.5739973]
[1726674548661,0.00084541,59529.0,59528.0,1.04061771]
[1726674548895,0.00084541,59529.0,59528.0,1.05461878]
[1726674549170,0.00084541,59529.0,59528.0,1.58364845]
[1726674549410,0.00084541,59529.0,59528.0,1.56481815]
[1726674549661,0.00084541,59529.0,59528.0,1.57681815]
[1726674549928,0.00084541,59529.0,59528.0,1.56264227]
[1726674550125,0.00084541,59529.0,59528.0,1.56664227]
[1726674550382,0.00084541,59529.0,59528.0,1.46196967]
[1726674550875,0.00084541,59529.0,59528.0,1.58781815]
[1726674551589,0.00084541,59529.0,59528.0,1.46196967]
[1726674551848,0.00084541,59529.0,59528.0,1.56663405]
[1726674552077,0.00084541,59529.0,59528.0,1.56263405]
[1726674552336,0.00084541,59529.0,59528.0,0.26865238]
[1726674552574,0.00084541,59529.0,59528.0,0.007]
[1726674552814,0.00084541,59529.0,59524.0,0.41149016]
[1726674552815,0.01130079,59529.0,59526.0,0.167993]
[1726674553051,0.167991,59527.0,59523.0,0.168821]
[1726674553294,0.167992,59527.0,59523.0,0.16882]
[1726674553572,0.167999,59524.0,59523.0,0.000819]
[1726674553816,0.95656526,59524.0,59523.0,0.000819]
[1726674554044,0.96696593,59524.0,59523.0,0.000819]
[1726674554521,0.7940216,59524.0,59523.0,0.000819]
[1726674555019,0.4580236,59524.0,59523.0,0.000819]
[1726674555258,0.12697093,59524.0,59523.0,0.000819]
[1726674555492,0.12697093,59524.0,59523.0,0.168821]
[1726674555727,0.12797093,59524.0,59523.0,0.168821]
[1726674555958,0.02877093,59524.0,59523.0,0.504825]
[1726674556190,0.02877093,59524.0,59523.0,0.73937073]
[1726674556413,0.001,59524.0,59523.0,0.73937073]
[1726674556643,0.001,59524.0,59523.0,1.07537473]
[1726674557111,0.001,59524.0,59523.0,0.504825]
[1726674557361,0.001,59524.0,59523.0,0.168821]
[1726674557615,0.001,59524.0,59523.0,0.504825]
[1726674557847,0.0111608,59524.0,59523.0,0.840829]
[1726674558082,0.001,59524.0,59523.0,0.840829]
[1726674559022,0.001,59524.0,59523.0,0.504825]
[1726674559488,0.0772,59527.0,59526.0,0.167993]
[1726674559729,0.0772,59527.0,59526.0,1.175954]
[1726674559730,0.01016057,59527.0,59526.0,1.175954]
[1726674560209,0.01016057,59527.0,59523.0,0.07631354]
[1726674560210,0.00084541,59529.0,59528.0,0.83994]
[1726674562059,0.00084541,59529.0,59528.0,1.175916]
[1726674562297,0.00184541,59529.0,59528.0,1.175916]
[1726674563064,0.00184541,59529.0,59528.0,1.87344021]
[1726674563302,0.00084541,59529.0,59528.0,1.87344021]
[1726674563533,0.00084541,59529.0,59528.0,1.83094567]
[1726674563767,0.00084541,59529.0,59528.0,1.93159025]
[1726674564009,0.00084541,59529.0,59528.0,1.83094567]
[1726674564239,0.00084541,59529.0,59528.0,1.84095587]
[1726674564698,0.00084541,59529.0,59528.0,1.83795587]
[1726674565165,0.00084541,59529.0,59528.0,1.84195587]
[1726674565461,0.00084541,59529.0,59528.0,1.83795587]
[1726674565684,0.00084541,59529.0,59528.0,1.9777447]
[1726674565918,0.00084541,59529.0,59528.0,1.9637447]
[1726674566152,0.00084541,59529.0,59528.0,2.53492507]
[1726674566416,0.00074541,59529.0,59528.0,2.42313587]
[1726674566659,0.00074541,59529.0,59528.0,2.39607387]
[1726674567154,0.00074541,59529.0,59528.0,1.85195587]
[1726674567386,0.00074541,59529.0,59528.0,1.97774004]
[1726674567842,0.00074541,59529.0,59528.0,1.96374004]
[1726674568314,0.00074541,59529.0,59528.0,1.85095587]
[1726674568545,0.00074541,59529.0,59528.0,1.96374004]
[1726674568788,0.00074541,59529.0,59528.0,1.311916]
[1726674569058,0.00074541,59529.0,59528.0,1.05356963]
[1726674569295,0.00074541,59529.0,59528.0,0.5672829]
[1726674569528,0.00074541,59529.0,59528.0,0.180988]
[1726674569755,0.00074541,59529.0,59528.0,0.516964]
[1726674569982,0.01118771,59529.0,59528.0,0.516964]
[1726674570181,0.00074541,59529.0,59528.0,0.85294]
[1726674570949,0.00074541,59529.0,59528.0,0.83994]
[1726674571414,0.00074541,59529.0,59528.0,1.182916]
[1726674573721,0.00074541,59529.0,59528.0,1.83494567]
[1726674573969,0.00074541,59529.0,59528.0,2.01108482]
[1726674574199,0.00074541,59529.0,59528.0,1.96075935]
[1726674574439,0.00074541,59529.0,59528.0,1.83494567]
[1726674575136,0.00074541,59529.0,59528.0,1.82794567]
[1726674575609,0.00064541,59529.0,59528.0,2.59213567]
[1726674575847,0.00064541,59529.0,59528.0,2.64713567]
[1726674576081,0.00054541,59529.0,59528.0,2.81530447]
[1726674576313,0.00054541,59529.0,59528.0,2.80330447]
[1726674576780,0.00054541,59529.0,59528.0,2.81730447]
[1726674577244,0.00044541,59529.0,59528.0,2.81730447]
[1726674577477,0.00044541,59529.0,59528.0,2.89590447]
[1726674577967,0.00044541,59529.0,59528.0,2.88190447]
[1726674578488,0.00044541,59529.0,59528.0,2.89590447]
[1726674579646,0.00044541,59529.0,59528.0,2.47215247]
[1726674579883,0.00044541,59529.0,59528.0,2.47888147]
[1726674580107,0.00044541,59529.0,59528.0,2.81485747]
[1726674581565,0.00044541,59529.0,59528.0,2.47851947]
[1726674581798,0.00044541,59529.0,59528.0,2.3296523]
[1726674582514,0.00044541,59529.0,59528.0,2.17876147]
[1726674583211,0.00044541,59529.0,59528.0,2.10016147]
[1726674583444,0.00044541,59529.0,59528.0,2.06648147]
[1726674586333,0.00034541,59529.0,59528.0,5.15767547]
[1726674586562,0.00034541,59529.0,59528.0,5.09149139]
[1726674586802,0.001642,59536.0,59535.0,1.641712]
[1726674587039,0.001642,59536.0,59535.0,2.16964725]
[1726674587276,0.001642,59536.0,59535.0,3.76227847]
[1726674587733,0.001642,59536.0,59535.0,3.55027847]
[1726674588221,0.001542,59536.0,59535.0,3.55027847]
[1726674588680,0.001542,59536.0,59535.0,2.05393447]
[1726674588951,0.001542,59536.0,59535.0,3.67526447]
[1726674589214,0.00164,59548.0,59546.0,0.5371058]
[1726674589215,0.00154,59547.0,59546.0,0.5371058]
[1726674589464,0.00154,59547.0,59546.0,1.37190747]
[1726674589748,0.00154,59547.0,59546.0,3.01330947]
[1726674589987,0.00154,59547.0,59546.0,2.04365547]
[1726674590450,0.00154,59547.0,59546.0,2.88105747]
[1726674590690,0.00154,59547.0,59546.0,2.78304447]
[1726674591249,0.00154,59547.0,59546.0,3.16265058]
[1726674591487,0.00144,59547.0,59546.0,3.16265058]
[1726674591719,0.00144,59547.0,59546.0,3.17165058]
[1726674591951,0.00144,59547.0,59546.0,3.16265058]
[1726674592181,0.00144,59547.0,59546.0,3.17465058]
[1726674592466,0.00144,59547.0,59546.0,2.97692661]
[1726674592701,0.00144,59547.0,59546.0,3.14194272]
[1726674592955,0.00144,59547.0,59546.0,3.00535858]
[1726674593201,0.00144,59547.0,59546.0,2.93773058]
[1726674593436,0.00144,59547.0,59546.0,2.92373058]
[1726674593669,0.00144,59547.0,59546.0,2.10138758]
[1726674593903,0.00144,59547.0,59546.0,2.39540894]
[1726674594619,0.00144,59547.0,59546.0,2.26995958]
[1726674595120,0.00144,59547.0,59546.0,2.25595958]
[1726674595361,0.00144,59547.0,59546.0,2.37029294]
[1726674595881,0.00144,59547.0,59546.0,2.35629294]
[1726674596167,0.00144,59547.0,59546.0,2.37029294]
[1726674596616,0.00144,59547.0,59546.0,2.16260101]
[1726674596851,0.00144,59547.0,59546.0,3.20825858]
[1726674597088,0.00144,59547.0,59546.0,2.10385192]
[1726674597349,0.00144,59547.0,59546.0,2.11785253]
[1726674598313,0.00144,59547.0,59546.0,2.15153253]
[1726674598562,0.00134,59547.0,59546.0,3.04569459]
[1726674598779,0.00134,59547.0,59546.0,3.33144258]
[1726674599015,0.00164,59548.0,59547.0,1.60141]
[1726674599250,0.00164,59555.0,59550.0,1.2424788]
[1726674599507,0.00164,59555.0,59550.0,2.07723647]
[1726674599837,0.00164,59555.0,59550.0,3.55606006]
[1726674600312,0.00164,59555.0,59550.0,3.50593647]
[1726674600541,0.00164,59555.0,59550.0,3.51993647]
[1726674600773,0.00164,59555.0,59550.0,2.09123647]
[1726674601798,0.003076,59551.0,59550.0,2.71446047]
[1726674602030,0.003076,59551.0,59550.0,2.72118647]
[1726674602264,0.003076,59551.0,59550.0,2.59797747]
[1726674603507,0.0768,59574.0,59564.0,0.290886]
[1726674603766,0.0768,59574.0,59573.0,0.167861]
[1726674604031,0.0038015,59576.0,59575.0,0.839277]
[1726674604276,0.0037015,59576.0,59575.0,1.69675267]
[1726674604539,0.0036015,59576.0,59575.0,1.69675267]
[1726674604798,0.0036015,59576.0,59575.0,1.90485267]
[1726674604799,0.0035015,59576.0,59575.0,1.90485267]
[1726674605318,0.0035015,59576.0,59575.0,1.36104167]
[1726674606091,0.0034015,59576.0,59575.0,1.67909543]
[1726674606362,0.0034015,59576.0,59575.0,1.68509543]
[1726674606587,0.0033015,59576.0,59575.0,2.01480643]
[1726674606829,0.0033015,59576.0,59575.0,1.67909543]
[1726674607114,0.0041205,59576.0,59575.0,1.69309543]
[1726674607327,0.0041205,59576.0,59575.0,1.67909543]
[1726674607574,0.0041205,59576.0,59575.0,1.99827743]
[1726674607825,0.0041205,59576.0,59575.0,2.02827743]
[1726674608066,0.0041205,59576.0,59575.0,2.38366843]
[1726674609380,0.0041205,59576.0,59575.0,2.39766843]
[1726674609668,0.001638,59584.0,59581.0,0.280838]
[1726674609879,0.003176,59587.0,59586.0,1.4839398]
[1726674610108,0.003076,59587.0,59586.0,3.19945347]
[1726674610344,0.003076,59587.0,59586.0,3.30818736]
[1726674610594,0.0038015,59594.0,59593.0,0.8125818]
[1726674610821,0.0038015,59594.0,59593.0,2.01614247]
[1726674611061,0.0038015,59594.0,59593.0,2.96369347]
[1726674611291,0.0038015,59594.0,59593.0,2.58156347]
[1726674612037,0.0038015,59594.0,59593.0,2.47098647]
[1726674612533,0.0038015,59594.0,59593.0,1.65700456]
[1726674612757,0.0038015,59594.0,59593.0,1.99261356]
[1726674612985,0.0037015,59594.0,59593.0,3.04031256]
[1726674613214,0.0037015,59594.0,59593.0,3.05431256]
[1726674613443,0.0037015,59594.0,59593.0,3.04031256]
[1726674613669,0.0036015,59594.0,59593.0,3.04031256]
[1726674613903,0.0036015,59594.0,59593.0,3.42360156]
[1726674614137,0.0036015,59594.0,59593.0,3.08799256]
[1726674614373,0.0036015,59594.0,59593.0,3.42360156]
[1726674614612,0.0002,59599.0,59598.0,0.09]
[1726674614879,0.0001,59599.0,59598.0,1.40485447]
[1726674615122,0.0001,59599.0,59598.0,3.22935547]
[1726674615352,0.0001,59599.0,59598.0,2.48938047]
[1726674616039,0.0001,59599.0,59598.0,2.04233647]
[1726674616553,0.0001,59599.0,59598.0,1.99633647]
[1726674616781,0.0001,59599.0,59598.0,1.66075547]
[1726674617007,0.0001,59599.0,59598.0,1.61675547]
[1726674617210,0.0001,59599.0,59598.0,1.66075547]
[1726674617663,0.0001,59599.0,59598.0,1.63075547]
[1726674617913,0.0001,59599.0,59598.0,0.852952]
[1726674618130,0.0781,59599.0,59598.0,0.517371]
[1726674618358,0.1812386,59599.0,59598.0,0.014]
[1726674618830,0.3490266,59599.0,59598.0,0.014]
[1726674619058,0.1812386,59599.0,59597.0,0.167793]
[1726674619288,0.1812386,59599.0,59598.0,0.169426]
[1726674619523,0.1812386,59599.0,59598.0,0.846588]
[1726674619750,0.169918,59599.0,59598.0,0.840588]
[1726674619977,0.169918,59599.0,59598.0,1.176169]
[1726674620202,0.078918,59599.0,59598.0,1.176169]
[1726674620424,0.078918,59599.0,59598.0,1.33922267]
[1726674620650,0.000918,59599.0,59598.0,1.46222267]
[1726674620892,0.000918,59599.0,59598.0,1.72079867]
[1726674621343,0.000918,59599.0,59598.0,1.62828567]
[1726674621583,0.000918,59599.0,59598.0,1.46222267]
[1726674621800,0.000918,59599.0,59598.0,1.82780367]
[1726674622022,0.000818,59599.0,59598.0,1.49222267]
[1726674622242,0.000818,59599.0,59598.0,1.69292267]
[1726674622490,0.000818,59599.0,59598.0,1.69692267]
[1726674622741,0.000818,59599.0,59598.0,1.69292267]
[1726674623023,0.000818,59599.0,59598.0,1.69892267]
[1726674623236,0.000818,59599.0,59598.0,1.69292267]
[1726674623677,0.000818,59599.0,59598.0,1.70192267]
[1726674624123,0.000818,59599.0,59598.0,1.50122267]
[1726674624347,0.000818,59599.0,59598.0,1.47122267]
[1726674625535,0.000818,59599.0,59598.0,1.46222267]
[1726674625763,0.000818,59599.0,59598.0,1.47122267]
[1726674626450,0.096818,59599.0,59598.0,0.178426]
[1726674626944,0.1088156,59599.0,59598.0,0.178426]
[1726674627162,0.2766036,59599.0,59598.0,0.001636]
[1726674627384,0.98165397,59599.0,59598.0,0.001636]
[1726674627604,0.97745916,59599.0,59598.0,0.010636]
[1726674627852,1.57578095,59599.0,59598.0,0.010636]
[1726674628078,1.57578095,59599.0,59588.0,0.335633]
[1726674628079,0.40126495,59599.0,59588.0,0.335633]
[1726674628312,0.40126495,59599.0,59597.0,0.167793]
[1726674628313,0.04759568,59598.0,59597.0,0.167793]
[1726674628757,0.04162426,59598.0,59597.0,0.167793]
[1726674628983,0.0119061,59598.0,59597.0,0.50338]
[1726674629261,0.0119061,59598.0,59597.0,0.167793]
[1726674629479,0.04154628,59598.0,59595.0,0.335597]
[1726674629731,0.04154628,59598.0,59592.0,0.335613]
[1726674629732,0.19743418,59597.0,59592.0,0.167806]
[1726674629972,0.3494901,59598.0,59592.0,0.167806]
[1726674629973,0.19743618,59596.0,59592.0,0.167806]
[1726674630223,0.0119061,59596.0,59592.0,0.167806]
[1726674630484,0.0119061,59596.0,59595.0,0.167799]
[1726674630711,0.04153517,59596.0,59595.0,0.503397]
[1726674630945,0.000818,59599.0,59598.0,0.838952]
[1726674631172,0.000718,59599.0,59598.0,0.838952]
[1726674631640,0.000718,59599.0,59598.0,1.174533]
[1726674631881,0.03032484,59599.0,59598.0,1.174533]
[1726674632109,0.03029255,59599.0,59598.0,1.174533]
[1726674632329,0.000718,59599.0,59598.0,1.174533]
[1726674633003,0.000718,59599.0,59598.0,1.177533]
[1726674633492,0.000718,59599.0,59598.0,1.36358667]
[1726674633742,0.000618,59599.0,59598.0,1.36058667]
[1726674634168,0.000618,59599.0,59598.0,1.36258667]
[1726674634646,0.000518,59599.0,59598.0,2.59702067]
[1726674635337,0.000518,59599.0,59598.0,2.59502067]
[1726674635832,0.000518,59599.0,59598.0,2.74284867]
[1726674636058,0.000819,59607.0,59606.0,1.86675753]
[1726674636286,0.000819,59607.0,59606.0,4.3720922]
[1726674636732,0.000819,59607.0,59606.0,3.6476202]
[1726674636986,0.000719,59607.0,59606.0,2.8880772]
[1726674637419,0.000719,59607.0,59606.0,2.3033992]
[1726674637641,0.000719,59607.0,59606.0,1.6942752]
[1726674637866,0.000719,59607.0,59606.0,1.46042967]
[1726674638336,0.000719,59607.0,59606.0,1.6942752]
[1726674638342,0.174319,59607.0,59606.0,0.167768]
[1726674638566,0.23372984,59607.0,59605.0,0.17803219]
[1726674638796,0.18745397,59607.0,59606.0,0.510304]
[1726674639021,0.23375394,59607.0,59606.0,0.503304]
[1726674639487,0.26362733,59607.0,59606.0,0.173768]
[1726674639712,0.26262733,59607.0,59606.0,0.167768]
[1726674639938,0.26262733,59607.0,59606.0,0.172768]
[1726674640166,0.26262733,59607.0,59606.0,0.005]
[1726674640396,0.26262733,59607.0,59606.0,0.167768]
[1726674640635,0.26262733,59607.0,59606.0,0.006]
[1726674640636,0.26362733,59607.0,59606.0,0.006]
[1726674641366,0.23495385,59607.0,59606.0,0.173768]
[1726674642084,0.23495385,59607.0,59606.0,0.509304]
[1726674642330,0.23395385,59607.0,59606.0,0.167768]
[1726674642589,0.23395385,59607.0,59606.0,0.503304]
[1726674643278,0.23395385,59607.0,59606.0,0.508304]
[1726674643514,0.23395385,59607.0,59606.0,0.005]
[1726674643746,0.23395385,59607.0,59606.0,0.167768]
[1726674643983,0.23795385,59607.0,59606.0,0.167768]
[1726674644463,0.21977605,59607.0,59606.0,0.167768]
[1726674644740,0.23761986,59607.0,59606.0,0.167768]
[1726674645734,0.23764173,59607.0,59603.0,0.33555]
[1726674645962,0.04718776,59606.0,59605.0,0.167769]
[1726674646211,0.04718776,59606.0,59601.0,0.335561]
[1726674646451,0.04718776,59606.0,59596.0,0.04997428]
[1726674646452,0.04718776,59605.0,59596.0,0.04997428]
[1726674646689,0.04718776,59604.0,59603.0,0.167775]
[1726674647162,0.05920089,59604.0,59603.0,0.167775]
[1726674647624,0.01201313,59604.0,59603.0,0.167775]
[1726674647859,0.05904324,59604.0,59603.0,0.167775]
[1726674648320,0.05904324,59604.0,59595.0,0.00164]
[1726674648617,0.167795,59597.0,59595.0,0.00164]
[1726674648861,0.167786,59600.0,59595.0,0.00164]
[1726674649112,0.167794,59597.0,59596.0,0.05012587]
[1726674649363,0.167794,59597.0,59595.0,0.00164]
[1726674649364,0.04694796,59597.0,59595.0,0.00164]
[1726674649619,0.04694796,59596.0,59595.0,0.21956387]
[1726674649861,0.04694796,59596.0,59595.0,0.05176587]
[1726674650104,0.04694796,59596.0,59595.0,0.21956487]
[1726674650345,0.05898123,59596.0,59595.0,0.169439]
[1726674650583,0.05898123,59596.0,59595.0,0.505037]
[1726674651101,0.05891097,59596.0,59595.0,1.176233]
[1726674651348,0.170119,59607.0,59606.0,0.83884]
[1726674651604,0.04756641,59607.0,59606.0,1.07268553]
[1726674651857,0.01265227,59607.0,59606.0,1.40822153]
[1726674652097,0.000619,59607.0,59606.0,1.40822153]
[1726674652832,0.000619,59607.0,59606.0,1.9298112]
[1726674653079,0.000619,59607.0,59606.0,1.99028347]
[1726674653580,0.000619,59607.0,59606.0,1.5942752]
[1726674653819,0.000619,59607.0,59606.0,1.64851275]
[1726674654052,0.000619,59607.0,59606.0,1.64451275]
[1726674654282,0.000619,59607.0,59606.0,1.71986908]
[1726674654507,0.001619,59607.0,59606.0,1.72686908]
[1726674654738,0.001619,59607.0,59606.0,1.72695497]
[1726674655219,0.001619,59607.0,59606.0,1.6012752]
[1726674655449,0.001619,59607.0,59606.0,2.0624902]
[1726674655683,0.001619,59607.0,59606.0,2.0368112]
[1726674655817,0.000619,59607.0,59606.0,2.0298112]
[1726674656059,0.000619,59607.0,59606.0,2.0348112]
[1726674656469,0.000619,59607.0,59606.0,2.18552386]
[1726674656741,0.001619,59607.0,59606.0,2.19252386]
[1726674656935,0.001619,59607.0,59606.0,2.0418112]
[1726674658107,0.001619,59607.0,59606.0,1.7062752]
[1726674658326,0.001619,59607.0,59606.0,1.59808957]
[1726674658543,0.001619,59607.0,59606.0,1.47242967]
[1726674658775,0.001619,59607.0,59606.0,1.7062752]
[1726674658984,0.001619,59607.0,59606.0,2.1674711]
[1726674659213,0.001619,59607.0,59606.0,1.7062752]
[1726674659431,0.001619,59607.0,59606.0,2.16745844]
[1726674659647,0.001619,59607.0,59606.0,2.0418112]
[1726674660317,0.001619,59607.0,59606.0,1.7062752]
[1726674660752,0.001619,59607.0,59606.0,1.83190465]
[1726674661212,0.001619,59607.0,59606.0,1.4956038]
[1726674661473,0.001619,59607.0,59606.0,1.65865747]
[1726674661680,0.001619,59607.0,59606.0,1.6832752]
[1726674661900,0.001619,59607.0,59606.0,2.0488112]
[1726674662335,0.001519,59607.0,59606.0,3.2253652]
[1726674663851,0.001519,59607.0,59606.0,3.23537002]
[1726674664069,0.001519,59607.0,59606.0,2.08181602]
[1726674665779,0.001519,59607.0,59606.0,2.08853602]
[1726674666006,0.001519,59607.0,59606.0,1.98050446]
[1726674666224,0.001519,59607.0,59606.0,1.293096]
[1726674666448,0.082019,59607.0,59606.0,0.01872]
[1726674666674,0.082019,59607.0,59606.0,0.012]
[1726674666675,1.74997979,59607.0,59606.0,0.012]
[1726674666891,1.74997979,59607.0,59606.0,0.01364]
[1726674666892,1.2709541,59607.0,59606.0,0.01364]
[1726674667116,0.26907343,59607.0,59606.0,0.01364]
[1726674667329,0.77236943,59607.0,59606.0,0.00864]
[1726674667546,1.10690043,59607.0,59606.0,0.00164]
[1726674667958,0.43583843,59607.0,59606.0,0.00264]
[1726674668167,0.79768917,59607.0,59606.0,0.00264]
[1726674668377,0.29439317,59607.0,59606.0,0.00264]
[1726674669076,0.16755889,59607.0,59606.0,0.505944]
[1726674669287,0.06073915,59607.0,59606.0,0.504944]
[1726674669496,0.02797207,59607.0,59606.0,0.505944]
[1726674669703,0.02797207,59607.0,59606.0,0.00264]
[1726674669704,0.06962155,59607.0,59606.0,0.00264]
[1726674669927,0.01897207,59607.0,59606.0,0.504944]
[1726674670147,0.02797207,59607.0,59606.0,0.505944]
[1726674670584,0.03996787,59607.0,59606.0,0.504944]
[1726674670801,0.07147915,59607.0,59606.0,0.504944]
[1726674671013,0.05948335,59607.0,59606.0,0.504944]
[1726674671237,0.05048335,59607.0,59606.0,0.169408]
[1726674671446,0.06253968,59607.0,59606.0,0.00164]
[1726674672098,0.06253968,59607.0,59606.0,0.169408]
[1726674672744,0.06753968,59607.0,59606.0,0.169408]
[1726674672987,0.06053968,59607.0,59606.0,0.169408]
[1726674673402,0.06253968,59607.0,59606.0,0.169408]
[1726674673611,0.0330094,59607.0,59606.0,0.169408]
[1726674673828,0.06660972,59607.0,59606.0,0.169408]
[1726674674050,0.06660972,59607.0,59606.0,0.00164]
[1726674674051,0.26432013,59607.0,59606.0,0.00164]
[1726674674308,1.09663052,59607.0,59606.0,0.00164]
[1726674674534,1.60916152,59607.0,59606.0,0.00164]
[1726674674746,0.503388,59596.0,59595.0,0.00164]
[1726674674973,0.88703339,59596.0,59595.0,0.00164]
[1726674675239,1.51999211,59596.0,59595.0,0.00164]
[1726674675459,0.167804,59594.0,59589.0,0.167815]
[1726674675711,0.167804,59594.0,59575.0,0.05025648]
[1726674675712,0.03018723,59593.0,59580.0,0.23382013]
[1726674675917,0.0907145,59593.0,59588.0,0.167817]
[1726674676150,0.0907145,59593.0,59579.0,0.05025648]
[1726674676151,0.05281078,59592.0,59579.0,0.05025648]
[1726674676462,0.335659,59585.0,59578.0,0.21810148]
[1726674676687,0.335659,59585.0,59576.0,0.16785]
[1726674676688,0.07880255,59584.0,59576.0,0.16785]
[1726674676900,0.07880255,59584.0,59573.0,0.05025648]
[1726674676901,0.0972,59582.0,59573.0,0.05025648]
[1726674677161,0.08299899,59581.0,59571.0,0.335733]
[1726674677383,0.335743,59570.0,59566.0,0.05025648]
[1726674677605,0.16269925,59580.0,59562.0,0.05025648]
[1726674677606,0.01886702,59569.0,59562.0,0.05025648]
[1726674677820,0.35461902,59568.0,59561.0,0.05030958]
[1726674678059,0.04119759,59569.0,59561.0,0.335788]
[1726674678060,0.04863974,59567.0,59561.0,0.335788]
[1726674678271,0.04863974,59566.0,59563.0,0.167887]
[1726674678487,0.01141867,59567.0,59557.0,0.05030958]
[1726674678488,0.0486281,59565.0,59559.0,0.335799]
[1726674678701,0.04836224,59564.0,59559.0,0.335799]
[1726674678917,0.03001983,59564.0,59563.0,0.167888]
[1726674679135,0.03016581,59564.0,59563.0,0.167888]
[1726674679357,0.07852813,59564.0,59561.0,0.167893]
[1726674679571,0.01141867,59564.0,59563.0,0.167889]
[1726674679793,0.05972738,59564.0,59563.0,0.167889]
[1726674680009,0.06705375,59564.0,59563.0,0.167889]
[1726674680241,0.06705375,59564.0,59563.0,0.503667]
[1726674680242,0.1084629,59564.0,59563.0,0.503667]
[1726674680451,0.08547242,59564.0,59563.0,0.504667]
[1726674680692,0.07405375,59564.0,59563.0,0.840445]
[1726674680899,0.07405375,59564.0,59563.0,0.504667]
[1726674681112,0.07405375,59564.0,59563.0,0.840445]
[1726674681326,0.11532268,59564.0,59563.0,0.840445]
[1726674681534,0.10390401,59564.0,59563.0,0.840445]
[1726674682632,0.10390401,59564.0,59563.0,1.176223]
[1726674682885,0.07405375,59564.0,59563.0,1.22653258]
[1726674683132,0.06705375,59564.0,59563.0,1.22553258]
[1726674683426,0.07105375,59564.0,59563.0,1.175223]
[1726674683667,0.06705375,59564.0,59563.0,1.175223]
[1726674683909,0.06705375,59564.0,59563.0,1.22553258]
[1726674684175,0.06705375,59564.0,59563.0,1.22753258]
[1726674684374,0.06705375,59564.0,59563.0,1.175223]
[1726674684606,0.06705375,59564.0,59563.0,1.177223]
[1726674684839,0.06705375,59564.0,59563.0,1.22553258]
[1726674685060,0.03732531,59564.0,59563.0,1.22553258]
[1726674685527,0.01874504,59564.0,59563.0,1.22553258]
[1726674685750,0.04857254,59564.0,59563.0,1.175223]
[1726674685971,0.03738884,59564.0,59563.0,1.175223]
[1726674686411,0.03738884,59564.0,59563.0,1.178223]
[1726674686630,0.03738884,59564.0,59563.0,1.175223]
[1726674687104,0.03738884,59564.0,59563.0,1.179223]
[1726674687324,0.03738884,59564.0,59563.0,1.175223]
[1726674687564,0.03738884,59564.0,59563.0,1.179223]
[1726674687815,0.03738884,59564.0,59563.0,1.175223]
[1726674688261,0.03738884,59564.0,59563.0,1.179223]